[Event "Queen Rapid Challenge 2024"]
[Site "Bucharest"]
[Date "2024.03.10"]
[Round "7.4"]
[White "Schiopu, Oana-Magdalena"]
[Black "Sgircea, Silvia-Raluca"]
[Result "0-1"]
[ECO "B23"]
[WhiteElo "1850"]
[BlackElo "2224"]
[Annotator "RC"]
[PlyCount "78"]
[EventDate "2024.03.09"]
[EventType "rapid"]
[EventCountry "ROU"]
[SourceTitle "playchess.com"]
[Source "ChessBase"]
[SourceQuality "1"]
[TimeControl "900+10"]

1. e4 {[%emt 0:00:12]} c5 {[%emt 0:00:11]} 2. Nc3 {[%emt 0:00:07]} g6 {[%emt 0:00:07]} 3. f4 {[%emt 0:00:08]} Bg7 {[%emt 0:00:06]} 4. Nf3 {[%emt 0:00:07]} Nc6 {[%emt 0:00:07]} 5. Bc4 {[%emt 0:00:13]} e6 {[%emt 0:00:07]} 6. e5 {[%emt 0:00:14]} d5 {[%emt 0:00:56]} 7. exd6 {[%emt 0:01:08]} Qxd6 {[%emt 0:00:06]} 8. d3 {[%emt 0:00:08]} Nf6 {[%emt 0:00:50]} 9. O-O {[%emt 0:00:25]} O-O {[%emt 0:00:16]} 10. Be3 {[%emt 0:00:32]} b6 {[%emt 0:00:50]} 11. Rb1 {[%emt 0:00:49]} Bb7 {[%emt 0:01:36]} 12. Ne4 {[%emt 0:00:51]} Qc7 {[%emt 0:00:07]} 13. Nfg5 {[%emt 0:00:28]} Nd5 {[%emt 0:00:29]} 14. Bd2 {[%emt 0:02:10]} h6 {[%emt 0:02:48]} 15. Nh3 {[%emt 0:00:21]} Nce7 {[%emt 0:00:51]} 16. Ng3 {[%emt 0:01:39]} Qc6 {[%emt 0:00:29]} 17. Qe2 {[%emt 0:00:43]} b5 {[%emt 0:00:37]} 18. Bxd5 {[%emt 0:00:19]} Qxd5 {[%emt 0:00:34]} 19. Bc3 {[%emt 0:00:30]} Rac8 {[%emt 0:01:31]} 20. Bxg7 {[%emt 0:00:50]} Kxg7 {[%emt 0:00:06]} 21. Qe5+ {[%emt 0:00:07]} Qxe5 {[%emt 0:00:31]} 22. fxe5 {[%emt 0:00:06]} Nc6 {[%emt 0:00:06]} 23. Rbe1 {[%emt 0:00:07]} Nb4 {[%emt 0:00:38]} 24. Rf2 {[%emt 0:00:59]} c4 {[%emt 0:01:17]} 25. a3 {[%emt 0:00:25]} Na6 {[%emt 0:00:58]} 26. d4 {[%emt 0:00:27]} c3 {[%emt 0:00:32]} 27. b4 {[%emt 0:00:15]} Rc4 {[%emt 0:00:23]} 28. Ne2 {[%emt 0:00:59]} Nc7 {[%emt 0:00:19]} 29. Nhf4 {[%emt 0:00:26]} a5 {[%emt 0:00:17]} 30. Nd3 {[%emt 0:01:00]} axb4 {[%emt 0:00:13]} 31. axb4 {[%emt 0:00:20]} Be4 {[%emt 0:00:41]} 32. Rc1 {[%emt 0:00:14]} Nd5 {[%emt 0:00:32]} 33. g4 {[%emt 0:01:00]} Bxd3 {[%emt 0:00:46]} 34. cxd3 {[%emt 0:00:08]} Rc7 {[%emt 0:00:06]} 35. Ng3 {[%emt 0:01:35]} Nxb4 {[%emt 0:00:13]} 36. Rf3 {[%emt 0:00:06]} c2 {[%emt 0:00:14]} 37. Kf1 {[%emt 0:00:42]} Na2 {[%emt 0:00:10]} 38. Ne2 {[%emt 0:00:06]} Nxc1 {[%emt 0:00:08]} 39. Nxc1 {[%emt 0:00:07]} b4 {[%emt 0:00:09]} 0-1

[Event "Queen Rapid Challenge 2024"]
[Site "Bucharest"]
[Date "2024.03.10"]
[Round "7.5"]
[White "Hoanca, Alexia-Ioana"]
[Black "Iordache, Alexia-Andreea"]
[Result "1-0"]
[ECO "B67"]
[WhiteElo "1849"]
[BlackElo "1866"]
[Annotator "NA RC"]
[PlyCount "59"]
[EventDate "2024.03.09"]
[EventType "rapid"]
[EventCountry "ROU"]
[SourceTitle "playchess.com"]
[Source "ChessBase"]
[SourceQuality "1"]
[TimeControl "900+10"]

1. e4 {[%emt 0:00:11]} c5 {[%emt 0:00:11]} 2. Nf3 {[%emt 0:00:06]} d6 {[%emt 0:00:05]} 3. d4 {[%emt 0:00:06]} cxd4 {[%emt 0:00:06]} 4. Nxd4 {[%emt 0:00:07]} Nf6 {[%emt 0:00:07]} 5. Nc3 {[%emt 0:00:06]} Nc6 {[%emt 0:00:06]} 6. Bg5 {[%emt 0:00:07]} e6 {[%emt 0:00:05]} 7. Qd2 {[%emt 0:00:16]} a6 {[%emt 0:00:17]} 8. O-O-O {[%emt 0:00:08]} Bd7 {[%emt 0:00:05]} 9. Kb1 {[%emt 0:00:16]} h6 {[%emt 0:00:43] 9...Nxd4 ist die kritische Fortsetzung.} 10. Bh4 {[%emt 0:00:24]} Be7 {[%emt 0:00:44] B67: Sizilianisch (Richter/Rauser-Angriff).} 11. f4 {[%emt 0:02:11]} g5 {[%emt 0:00:31]} 12. fxg5 {[%emt 0:01:13]} Ng4 {[%emt 0:00:06]} 13. Be2 {[%emt 0:02:32]} hxg5 {[%emt 0:00:06]} 14. Bg3 {[%emt 0:00:26]} Nge5 {[%emt 0:00:10]} 15. Nxc6 {[%emt 0:00:33]} Bxc6 {[%emt 0:01:04]} 16. Qe3 {[%emt 0:01:37]} Qc7 {[%emt 0:00:57]} 17. Bxe5 $146 {[%emt 0:00:22]} ({Predecessor:} 17. Rhf1 Bd7 18. Rd4 Qc5 19. Qd2 b5 20. Nd1 Rd8 21. Ne3 Bc6 22. c4 Qb6 23. Rc1 {0-1 Carlsen,M (2553)-Nijboer,F (2549) Corus-B Wijk aan Zee 2005 (13)}) 17... dxe5 {[%emt 0:00:11]} 18. Qf2 {[%emt 0:00:17]} b5 {[%emt 0:04:16]} 19. Rhf1 {[%emt 0:00:42]} f6 {[%emt 0:01:01]} 20. Bg4 {[%emt 0:01:38]} b4 {[%emt 0:01:25]} (20... Rxh2 $2 {loses.} 21. Bxe6 Rh6 22. Rh1 (22. Nd5 Bxd5 23. exd5 Qc5 $18) 22... Rxh1 23. Rxh1 $18) (20... Kf7 $1 $14) 21. Nd5 {[%emt 0:03:32]} exd5 {[%emt 0:02:01]} 22. exd5 {[%emt 0:00:37]} Bb5 {[%emt 0:03:56]} 23. d6 {[%emt 0:00:24]} Qa7 {[%emt 0:00:32]} 24. Qf5 {[%emt 0:00:54]} Bxf1 {[%emt 0:00:25]} 25. Qg6+ {[%emt 0:00:28]} Kf8 {[%emt 0:00:00]} 26. d7 {[%emt 0:00:10]} Bc4 {[%emt 0:00:08]} 27. Rf1 $19 {[%emt 0:00:10]} Bxf1 {[%emt 0:00:14]} 28. Be6 {[%emt 0:00:17]} Rh7 {[%emt 0:00:10]} 29. Qxh7 {[%emt 0:00:00]} Bd3 {[%emt 0:00:11]} 30. Qf7# {[%emt 0:00:20]} 1-0

[Event "Queen Rapid Challenge 2024"]
[Site "Bucharest"]
[Date "2024.03.10"]
[Round "7.6"]
[White "Maria, Lia-Alexandra"]
[Black "Batagan, Ilinca-Petra"]
[Result "1-0"]
[ECO "A16"]
[WhiteElo "1996"]
[BlackElo "1915"]
[Annotator "RC"]
[PlyCount "107"]
[EventDate "2024.03.09"]
[EventType "rapid"]
[EventCountry "ROU"]
[SourceTitle "playchess.com"]
[Source "ChessBase"]
[SourceQuality "1"]
[TimeControl "900+10"]

1. c4 {[%emt 0:00:13]} Nf6 {[%emt 0:00:34]} 2. Nf3 {[%emt 0:00:07]} g6 {[%emt 0:00:12]} 3. Nc3 {[%emt 0:00:09]} d5 {[%emt 0:00:44]} 4. cxd5 {[%emt 0:00:20]} Nxd5 {[%emt 0:00:09]} 5. e4 {[%emt 0:00:08]} Nxc3 {[%emt 0:00:14]} 6. bxc3 {[%emt 0:00:07]} Bg7 {[%emt 0:00:14]} 7. Bb5+ {[%emt 0:00:23]} c6 {[%emt 0:01:33]} 8. Bc4 {[%emt 0:00:10]} O-O {[%emt 0:00:23]} 9. h3 {[%emt 0:00:47]} c5 {[%emt 0:00:47]} 10. O-O {[%emt 0:00:41]} Nc6 {[%emt 0:00:14]} 11. Bd5 {[%emt 0:00:15]} Qc7 {[%emt 0:00:57]} 12. d4 {[%emt 0:00:34]} e6 {[%emt 0:00:53]} 13. Bb3 {[%emt 0:00:27]} b6 {[%emt 0:01:53]} 14. Be3 {[%emt 0:00:47]} Ba6 {[%emt 0:01:07]} 15. Re1 {[%emt 0:00:12]} Rad8 {[%emt 0:00:08]} 16. Qc2 {[%emt 0:00:40]} c4 {[%emt 0:00:42]} 17. Ba4 {[%emt 0:00:23]} b5 {[%emt 0:00:07]} 18. Rad1 {[%emt 0:00:34]} Qa5 {[%emt 0:02:30]} 19. Bb3 {[%emt 0:01:30]} cxb3 {[%emt 0:00:16]} 20. axb3 {[%emt 0:00:07]} Qc7 {[%emt 0:00:20]} 21. Qa2 {[%emt 0:02:43]} Bb7 {[%emt 0:00:12]} 22. c4 {[%emt 0:01:13]} bxc4 {[%emt 0:01:05]} 23. bxc4 {[%emt 0:00:07]} a5 {[%emt 0:00:25]} 24. d5 {[%emt 0:00:49]} Nb4 {[%emt 0:00:16]} 25. Qb3 {[%emt 0:00:10]} exd5 {[%emt 0:00:15]} 26. exd5 {[%emt 0:00:16]} Ba6 {[%emt 0:00:40]} 27. c5 {[%emt 0:00:56]} Nd3 {[%emt 0:00:17]} 28. Rxd3 {[%emt 0:00:17]} Bxd3 {[%emt 0:00:07]} 29. Qxd3 {[%emt 0:00:06]} Qb7 {[%emt 0:00:41]} 30. d6 {[%emt 0:00:24]} Rfe8 {[%emt 0:00:24]} 31. Rb1 {[%emt 0:00:35]} Qc6 {[%emt 0:00:15]} 32. Rb6 {[%emt 0:00:27]} Qa4 {[%emt 0:00:10]} 33. Bg5 {[%emt 0:00:39]} Rd7 {[%emt 0:01:15]} 34. c6 {[%emt 0:00:29]} Qa1+ {[%emt 0:00:06]} 35. Rb1 {[%emt 0:01:20]} Rxd6 {[%emt 0:00:06]} 36. Qc2 {[%emt 0:00:19]} Rxc6 {[%emt 0:00:12]} 37. Qxc6 {[%emt 0:00:21]} Qxb1+ {[%emt 0:00:06]} 38. Kh2 {[%emt 0:00:07]} Qe4 {[%emt 0:00:08]} 39. Qb6 {[%emt 0:00:40]} Be5+ {[%emt 0:00:17]} 40. Nxe5 {[%emt 0:00:18]} Qxe5+ {[%emt 0:00:07]} 41. f4 {[%emt 0:00:06]} Qd5 {[%emt 0:00:22]} 42. Bh6 {[%emt 0:00:32]} Qf5 {[%emt 0:00:25]} 43. Qb2 {[%emt 0:00:18]} f6 {[%emt 0:00:06]} 44. Qb7 {[%emt 0:00:08]} Qxf4+ {[%emt 0:00:28]} 45. Bxf4 {[%emt 0:00:07]} g5 {[%emt 0:00:07]} 46. Bd6 {[%emt 0:00:10]} Re6 {[%emt 0:00:09]} 47. Qd7 {[%emt 0:00:09]} Re4 {[%emt 0:00:12]} 48. Qd8+ {[%emt 0:00:07]} Kf7 {[%emt 0:00:06]} 49. Qxa5 {[%emt 0:00:09]} Ke6 {[%emt 0:00:07]} 50. Qb6 {[%emt 0:00:07]} Kf5 {[%emt 0:00:08]} 51. Qc5+ {[%emt 0:00:09]} Kg6 {[%emt 0:00:08]} 52. Qc2 {[%emt 0:00:09]} Kf5 {[%emt 0:00:07]} 53. g4+ {[%emt 0:00:07]} Ke6 {[%emt 0:00:07]} 54. Qxe4+ {[%emt 0:00:07]} 1-0

[Event "Queen Rapid Challenge 2024"]
[Site "Bucharest"]
[Date "2024.03.10"]
[Round "7.7"]
[White "Stanciu, Andreea-Briana"]
[Black "Mihalea, Maria-Ioana"]
[Result "1-0"]
[ECO "D02"]
[WhiteElo "1976"]
[BlackElo "1712"]
[Annotator "RC"]
[PlyCount "155"]
[EventDate "2024.03.09"]
[EventType "rapid"]
[EventCountry "ROU"]
[SourceTitle "playchess.com"]
[Source "ChessBase"]
[SourceQuality "1"]
[TimeControl "900+10"]

1. d4 {[%emt 0:00:13]} Nf6 {[%emt 0:00:12]} 2. Nf3 {[%emt 0:00:15]} d5 {[%emt 0:00:20]} 3. Bf4 {[%emt 0:00:07]} c6 {[%emt 0:00:11]} 4. e3 {[%emt 0:00:48]} Qb6 {[%emt 0:00:16]} 5. b3 {[%emt 0:00:36]} Bg4 {[%emt 0:01:04]} 6. h3 {[%emt 0:00:32]} Bf5 {[%emt 0:00:16]} 7. Bd3 {[%emt 0:00:44]} e6 {[%emt 0:01:42]} 8. O-O {[%emt 0:00:17]} Nbd7 {[%emt 0:00:13]} 9. c4 {[%emt 0:00:32]} Bb4 {[%emt 0:01:32]} 10. a3 {[%emt 0:00:27]} Be7 {[%emt 0:01:13]} 11. c5 {[%emt 0:00:06]} Qd8 {[%emt 0:00:08]} 12. b4 {[%emt 0:00:56]} Ne4 {[%emt 0:00:32]} 13. Bxe4 {[%emt 0:00:30]} Bxe4 {[%emt 0:00:31]} 14. Nc3 {[%emt 0:00:10]} Bg6 {[%emt 0:01:06]} 15. a4 {[%emt 0:00:23]} Nf6 {[%emt 0:00:45]} 16. Ne5 {[%emt 0:01:00]} Nd7 {[%emt 0:02:31]} 17. Nxg6 {[%emt 0:01:42]} hxg6 {[%emt 0:00:06]} 18. e4 {[%emt 0:00:22]} g5 {[%emt 0:00:36]} 19. Bh2 {[%emt 0:01:43]} Nf6 {[%emt 0:01:04]} 20. f3 {[%emt 0:01:06]} Qd7 {[%emt 0:01:31]} 21. b5 {[%emt 0:00:23]} Rd8 {[%emt 0:01:07]} 22. Be5 {[%emt 0:00:57]} O-O {[%emt 0:00:57]} 23. Qc2 {[%emt 0:03:00]} b6 {[%emt 0:00:08]} 24. exd5 {[%emt 0:01:04]} Nxd5 {[%emt 0:00:11]} 25. Nxd5 {[%emt 0:00:54]} cxd5 {[%emt 0:00:12]} 26. c6 {[%emt 0:00:06]} Qc8 {[%emt 0:00:11]} 27. a5 {[%emt 0:00:18]} Bd6 {[%emt 0:00:09]} 28. Bxd6 {[%emt 0:00:14]} Rxd6 {[%emt 0:00:07]} 29. axb6 {[%emt 0:00:07]} axb6 {[%emt 0:00:06]} 30. Ra7 {[%emt 0:00:11]} e5 {[%emt 0:00:34]} 31. dxe5 {[%emt 0:00:08]} Re6 {[%emt 0:00:07]} 32. Qf5 {[%emt 0:00:13]} Rxc6 {[%emt 0:00:16]} 33. Qxg5 {[%emt 0:00:28]} Rc5 {[%emt 0:00:10]} 34. Rfa1 {[%emt 0:00:10]} Rxb5 {[%emt 0:00:11]} 35. Qe7 {[%emt 0:00:09]} Qc5+ {[%emt 0:00:00]} 36. Qxc5 {[%emt 0:00:08]} bxc5 {[%emt 0:00:00]} 37. Rd7 {[%emt 0:00:06]} d4 {[%emt 0:00:00]} 38. Raa7 {[%emt 0:00:08]} Rb6 {[%emt 0:00:00]} 39. f4 {[%emt 0:00:07]} c4 {[%emt 0:00:00]} 40. Rac7 {[%emt 0:00:17]} c3 {[%emt 0:00:00]} 41. Rxd4 {[%emt 0:00:07]} Rb1+ {[%emt 0:00:00]} 42. Kh2 {[%emt 0:00:06]} Rc1 {[%emt 0:00:06]} 43. Rdc4 {[%emt 0:00:10]} Rf1 {[%emt 0:00:16]} 44. Kg3 {[%emt 0:00:08]} Ra1 {[%emt 0:00:45]} 45. Rxc3 {[%emt 0:00:07]} Ra4 {[%emt 0:00:10]} 46. Rc8 {[%emt 0:00:14]} Ra8 {[%emt 0:00:12]} 47. Rxf8+ {[%emt 0:00:12]} Kxf8 {[%emt 0:00:07]} 48. Kf3 {[%emt 0:00:12]} Ra1 {[%emt 0:00:18]} 49. g4 {[%emt 0:00:18]} Rh1 {[%emt 0:00:13]} 50. Ke4 {[%emt 0:00:07]} Re1+ {[%emt 0:00:07]} 51. Re3 {[%emt 0:00:13]} Rg1 {[%emt 0:00:12]} 52. f5 {[%emt 0:00:10]} Ke7 {[%emt 0:00:10]} 53. Ra3 {[%emt 0:00:08]} Re1+ {[%emt 0:00:07]} 54. Kf4 {[%emt 0:00:06]} Rf1+ {[%emt 0:00:13]} 55. Kg3 {[%emt 0:00:06]} Re1 {[%emt 0:00:10]} 56. Ra7+ {[%emt 0:00:07]} Kf8 {[%emt 0:00:07]} 57. Ra8+ {[%emt 0:00:20]} Ke7 {[%emt 0:00:07]} 58. Ra7+ {[%emt 0:00:05]} Kf8 {[%emt 0:00:06]} 59. Ra5 {[%emt 0:00:14]} Re3+ {[%emt 0:00:11]} 60. Kg2 {[%emt 0:00:05]} Re2+ {[%emt 0:00:18]} 61. Kf3 {[%emt 0:00:08]} Rb2 {[%emt 0:00:12]} 62. f6 {[%emt 0:00:08]} Rb3+ {[%emt 0:00:25]} 63. Kf4 {[%emt 0:00:08]} Rb4+ {[%emt 0:00:12]} 64. Kg5 {[%emt 0:00:15]} Kg8 {[%emt 0:00:24]} 65. h4 {[%emt 0:00:20]} Rb6 {[%emt 0:00:17]} 66. h5 {[%emt 0:00:11]} Kh7 {[%emt 0:00:09]} 67. fxg7 {[%emt 0:00:11]} Kxg7 {[%emt 0:00:07]} 68. Kf5 {[%emt 0:00:05]} Kh7 {[%emt 0:00:23]} 69. g5 {[%emt 0:00:11]} Kg7 {[%emt 0:00:07]} 70. Ra7 {[%emt 0:00:15]} Rb1 {[%emt 0:00:09]} 71. h6+ {[%emt 0:00:06]} Kg8 {[%emt 0:00:06]} 72. h7+ {[%emt 0:00:06]} Kh8 {[%emt 0:00:14]} 73. Rxf7 {[%emt 0:00:08]} Rf1+ {[%emt 0:00:07]} 74. Ke6 {[%emt 0:00:07]} Rg1 {[%emt 0:00:12]} 75. Rf5 {[%emt 0:00:15]} Kxh7 {[%emt 0:00:11]} 76. Kf7 {[%emt 0:00:06]} Kh8 {[%emt 0:00:19]} 77. g6 {[%emt 0:00:11]} Rg3 {[%emt 0:00:10]} 78. Rh5# {[%emt 0:00:07]} 1-0

[Event "Queen Rapid Challenge 2024"]
[Site "Bucharest"]
[Date "2024.03.10"]
[Round "7.8"]
[White "Dobre, Ana-Margareta-Alexan"]
[Black "Sandu, Mihaela"]
[Result "0-1"]
[ECO "C25"]
[WhiteElo "1914"]
[BlackElo "2270"]
[Annotator "TA"]
[PlyCount "52"]
[EventDate "2024.03.09"]
[EventType "rapid"]
[EventCountry "ROU"]
[SourceTitle "playchess.com"]
[Source "ChessBase"]
[SourceQuality "1"]
[TimeControl "900+10"]

{[%evp 9,52,21,25,-33,-38,-325,0,-277,-196,-189,-192,-190,-187,-262,-216,-385,-380,-497,-507,-493,-497,-539,-462,-600,-518,-487,-509,-493,-452,-438,-449,-488,-412,-745,-747,-752,-750,-762,-752,-853,-756,-857,-868,-1067,-1041]} 1. e4 {[%emt 0:00:12]} e5 {[%emt 0:00:11]} 2. Bc4 {[%emt 0:00:08]} Nc6 {[%emt 0:00:10][%cal Bb8c6,Bc6d4,Bd4c2][%mdl 32]} 3. Nc3 {[%emt 0:00:09]} Bc5 {[%emt 0:00:15]} 4. Qg4 {[%emt 0:01:01]} g6 {[%emt 0:00:42]} 5. Qf3 {[%emt 0:00:32]} Nf6 {[%emt 0:00:21]} 6. d3 {[%emt 0:03:46]} (6. Nge2 $11) 6... Nd4 $15 {[%emt 0:00:14][%csl LRc2,LRf3]} 7. Qg3 {[%emt 0:01:09][%mdl 8192] [#]} (7. Qd1 $15) 7... O-O $2 {[%emt 0:06:44]} ({Black should try} 7... Nxc2+ $19 8. Kd1 Nxa1 9. Qxe5+ Qe7) 8. Nf3 $2 {[%emt 0:03:53][%mdl 8192]} (8. Bb3 $11 {and White is okay.}) 8... Nh5 {[%emt 0:00:53]} 9. Qxe5 {[%emt 0:00:28]} d6 {[%emt 0:00:07]} 10. Qg5 {[%emt 0:01:19]} Nxc2+ {[%emt 0:00:23]} 11. Kd1 {[%emt 0:00:06]} (11. Ke2 $142) 11... Qxg5 {[%emt 0:01:26]} 12. Nxg5 {[%emt 0:00:37] [#]} (12. Bxg5 {was the only chance.} Nxa1 13. Kd2) 12... Nxa1 $19 {[%emt 0:00:26]} 13. Nd5 {[%emt 0:01:54]} c6 {[%emt 0:00:20]} (13... Bxf2 $2 14. Ne7+ Kg7 15. Nxc8 $19) 14. Ne7+ {[%emt 0:00:50]} Kg7 {[%emt 0:00:06]} 15. Bd2 {[%emt 0:00:26]} Bd4 {[%emt 0:00:08]} (15... Bxf2 $2 16. Bc3+ f6 (16... Nf6 17. Rf1 $11) 17. Nxc8 Rfxc8 (17... Raxc8 18. Ne6+ Kf7 19. Nxf8+ Kxf8 20. Ke2 $17) 18. Ne6+ Kg8 19. a4 $17) 16. Ke2 {[%emt 0:00:39]} Bxb2 {[%emt 0:00:58][%cal Od6d5] Strongly threatening ...d5!} 17. Rb1 {[%emt 0:00:15]} Bf6 {[%emt 0:00:08]} 18. Nxc8 {[%emt 0:00:22]} b5 {[%emt 0:02:54]} ({Not} 18... Rfxc8 19. Rxb7 Bxg5 20. Bxg5 $19) 19. Nxd6 {[%emt 0:00:26]} bxc4 {[%emt 0:00:07]} 20. Rb7 {[%emt 0:00:11]} cxd3+ {[%emt 0:00:08]} 21. Kf3 {[%emt 0:00:08]} (21. Kxd3 $142 Bxg5 22. Bxg5) 21... Bxg5 {[%emt 0:00:12] Black is clearly winning.} 22. Bxg5 {[%emt 0:00:07]} Rab8 {[%emt 0:00:20]} 23. Rxa7 {[%emt 0:00:22]} Nc2 {[%emt 0:00:10]} 24. g4 {[%emt 0:00:00]} Nf6 {[%emt 0:00:36]} 25. e5 {[%emt 0:00:00]} Nd5 {[%emt 0:00:09] And now ...Ra8 would win.} 26. e6 {[%emt 0:00:21]} Nd4+ {[%emt 0:00:07] Weighted Error Value: White=1.03/Black=0.43.  Loses game:     	White=2     	---        Missed win:     	---       	Black=1      Mistake:       	White=3     	---        Inaccurate:     	White=1     	---        OK:         	White=5     	Black=5      Best:        	White=1     	Black=2} 0-1

[Event "Queen Rapid Challenge 2024"]
[Site "Bucharest"]
[Date "2024.03.10"]
[Round "7.9"]
[White "Cosman, Andreea-Marioara"]
[Black "Fileru, Maria"]
[Result "1-0"]
[ECO "D36"]
[WhiteElo "2115"]
[BlackElo "1822"]
[Annotator "RC"]
[PlyCount "55"]
[EventDate "2024.03.09"]
[EventType "rapid"]
[EventCountry "ROU"]
[SourceTitle "playchess.com"]
[Source "ChessBase"]
[SourceQuality "1"]
[TimeControl "900+10"]

1. d4 {[%emt 0:00:13]} d5 {[%emt 0:00:11]} 2. c4 {[%emt 0:00:06]} e6 {[%emt 0:00:08]} 3. Nc3 {[%emt 0:00:07]} Nf6 {[%emt 0:00:07]} 4. cxd5 {[%emt 0:00:07]} exd5 {[%emt 0:00:06]} 5. Bg5 {[%emt 0:00:06]} Be7 {[%emt 0:00:07]} 6. e3 {[%emt 0:00:07]} O-O {[%emt 0:00:12]} 7. Bd3 {[%emt 0:00:07]} Nbd7 {[%emt 0:00:15]} 8. Qc2 {[%emt 0:00:09]} Re8 {[%emt 0:00:14]} 9. h3 {[%emt 0:00:19]} Nf8 {[%emt 0:00:12]} 10. Nf3 {[%emt 0:00:19]} Ng6 {[%emt 0:00:25]} 11. O-O {[%emt 0:00:24]} c6 {[%emt 0:00:22]} 12. Rad1 {[%emt 0:00:31]} Ne4 {[%emt 0:01:33]} 13. Bxe4 {[%emt 0:01:47]} dxe4 {[%emt 0:04:55]} 14. Bxe7 {[%emt 0:00:22]} Qxe7 {[%emt 0:00:11]} 15. Nd2 {[%emt 0:00:08]} f5 {[%emt 0:01:20]} 16. d5 {[%emt 0:00:09]} Ne5 {[%emt 0:01:25]} 17. Qb3 {[%emt 0:01:36]} Qg5 {[%emt 0:02:05]} 18. dxc6+ {[%emt 0:03:22]} Be6 {[%emt 0:00:27]} 19. Qxb7 {[%emt 0:02:33]} Nf3+ {[%emt 0:00:41]} 20. Nxf3 {[%emt 0:01:36]} exf3 {[%emt 0:00:06]} 21. g3 {[%emt 0:00:06]} f4 {[%emt 0:01:42]} 22. exf4 {[%emt 0:00:17]} Qh5 {[%emt 0:00:10]} 23. c7 {[%emt 0:00:28]} Qxh3 {[%emt 0:00:52]} 24. Qxf3 {[%emt 0:00:15]} Bg4 {[%emt 0:00:52]} 25. Qd5+ {[%emt 0:00:08]} Kh8 {[%emt 0:00:10]} 26. Qxa8 {[%emt 0:00:17]} Qxf1+ {[%emt 0:00:31]} 27. Kxf1 {[%emt 0:00:18]} Bc8 {[%emt 0:00:11]} 28. Qxc8 {[%emt 0:00:12]} 1-0

[Event "Queen Rapid Challenge 2024"]
[Site "Bucharest"]
[Date "2024.03.10"]
[Round "7.10"]
[White "Didiliuc, Dariana-Gabriela"]
[Black "Pandelescu, Maria-Catalina"]
[Result "0-1"]
[ECO "D32"]
[WhiteElo "1917"]
[BlackElo "1701"]
[Annotator "RC"]
[PlyCount "50"]
[EventDate "2024.03.09"]
[EventType "rapid"]
[EventCountry "ROU"]
[SourceTitle "playchess.com"]
[Source "ChessBase"]
[SourceQuality "1"]
[TimeControl "900+10"]

1. d4 {[%emt 0:00:11]} d5 {[%emt 0:00:13]} 2. c4 {[%emt 0:00:08]} e6 {[%emt 0:00:06]} 3. Nc3 {[%emt 0:00:07]} c5 {[%emt 0:00:10]} 4. cxd5 {[%emt 0:00:20]} exd5 {[%emt 0:00:07]} 5. dxc5 {[%emt 0:00:17]} d4 {[%emt 0:00:09]} 6. Na4 {[%emt 0:00:48]} b5 {[%emt 0:00:48]} 7. cxb6 {[%emt 0:00:25]} axb6 {[%emt 0:00:09]} 8. b3 {[%emt 0:00:23]} b5 {[%emt 0:00:11]} 9. Nb2 {[%emt 0:00:16]} Nc6 {[%emt 0:00:39]} 10. Nd3 {[%emt 0:00:59]} Nf6 {[%emt 0:00:50]} 11. Nf3 {[%emt 0:00:40]} Bg4 {[%emt 0:01:22]} 12. Bd2 {[%emt 0:02:16]} Bd6 {[%emt 0:01:21]} 13. Qc2 {[%emt 0:01:19]} Rc8 {[%emt 0:01:08]} 14. Qb2 {[%emt 0:00:48]} Be7 {[%emt 0:01:24]} 15. Nfe5 {[%emt 0:00:49]} Nxe5 {[%emt 0:00:16]} 16. Nxe5 {[%emt 0:00:07]} Bf5 {[%emt 0:00:09]} 17. Nd3 {[%emt 0:00:43]} O-O {[%emt 0:00:31]} 18. f3 {[%emt 0:01:14]} Qb6 {[%emt 0:01:43]} 19. a4 {[%emt 0:01:37]} Bxd3 {[%emt 0:00:38]} 20. exd3 {[%emt 0:00:09]} Rfe8 {[%emt 0:00:30]} 21. Be2 {[%emt 0:00:37]} Bd6 {[%emt 0:01:15]} 22. a5 {[%emt 0:00:54]} Qc5 {[%emt 0:00:36]} 23. b4 {[%emt 0:00:23]} Qe5 {[%emt 0:00:16]} 24. Bc1 {[%emt 0:00:59]} Bxb4+ {[%emt 0:00:16]} 25. Kf2 {[%emt 0:00:21]} Bc3 {[%emt 0:00:07]} 0-1